Cogmind - Beta 13 @@@ ROGUE MODE // 2024.04.06 @ 00:48:24 Player: Andru7428 Result: Self-destructed Performance ------------- Evolutions (4) 2000 Regions Visited (13) 2600 Robots Destroyed (168) 840 Value Destroyed (6527) 6527 Prototype IDs (5) 100 Alien Tech Used (0) 0 Bonus (3779) 3779 TOTAL SCORE: 15846 Bonus ------- High Alert Combat Kills 963 Follower Combat Kills 280 Entered Garrisons 800 Used RIF Installer 2500 Entered DSFs 500 Friendly Fire -1264 Cogmind --------- Core Integrity 704/850 Matter 171/300 Energy 315/315 System Corruption 2% Temperature Cool (20) Movement Walking (260) Ox2 Location -6/DSF Parts ------- > --- POWER (1) -------- Neutrino Core > --- PROPULSION (3) --- Armored Leg > --- UTILITY (9) ------ Large Storage Unit Insulated Plating Relay Coupler [Grunt] (24) Relay Coupler [Sentry] (31) > --- WEAPON (2) ------- Gauss Rifle > --- INVENTORY (15) --- Neutrino Core Power Amplifier Coolant Injector High-capacity Matter Pod (0) Relay Coupler [Grunt] (29) Relay Coupler [Grunt] (25) Relay Coupler [Grunt] (25) Relay Coupler [Brawler] (23) Relay Coupler [Hunter] (21) Relay Coupler [Hunter] (23) Relay Coupler [Hunter] (19) Remote Datajack Plasma Cutter Chainsword Peak State ------------ > --- POWER ------------ Antimatter Reactor > --- PROPULSION ------- Myomer Leg Advanced VSS Leg Advanced VSS Leg > --- UTILITY ---------- Large Storage Unit Core Analyzer Advanced Reaction Control System Relay Coupler [Swarmer] Relay Coupler [Grunt] Relay Coupler [Sentry] Relay Coupler [Hunter] > --- WEAPON ----------- Heavy Ion Cannon Remote Datajack > --- INVENTORY -------- Micro Nuclear Core Improved Fusion Compressor Armored Huge Wheel Coolant Injector High-capacity Matter Pod Relay Coupler [NC] Relay Coupler [Grunt] Relay Coupler [Sentry] Relay Coupler [Sentry] Relay Coupler [Hunter] Gauss Cannon Gauss Cannon Remote Datajack Segregator [Rating: 68] Favorites ----------- Power Deuterium Engine Engine Deuterium Engine Power Core Light Nuclear Core Reactor Antimatter Reactor Propulsion Light Treads Treads Light Treads Leg Advanced VSS Leg Wheel Armored Huge Wheel Utility Large Storage Unit Device Seismic Detector Storage Large Storage Unit Processor Core Analyzer Hackware Relay Coupler [Sentry] Protection Hardened Medium Armor Plating Weapon Advanced Beam Cannon Energy Gun Beam Rifle Energy Cannon Advanced Beam Cannon Ballistic Gun Gauss Rifle Ballistic Cannon Gauss Cannon Launcher Mini Grenade Launcher Special Weapon Remote Datajack Slashing Weapon Chainsword Piercing Weapon Spear Build | -11 -10 -9 -9 -8 -8 -8 -8 -7 -7 -7 -7 -6 -6 ------- Run | Yrd Mat Mat Min Mat Gar Mat Gar Fac Gar Fac Gar Fac DSF Slots Evolved 8 | . . 2 . 2 . . . 2 . . . 2 . Power . | . . . . . . . . . . . . . . Propulsion 1 | . . . . 1 . . . . . . . . . Utility 7 | . . 2 . 1 . . . 2 . . . 2 . Weapon . | . . . . . . . . . . . . . . Parts Attached 201 | 7 11 27 10 14 20 7 22 33 21 7 5 10 7 Power 17 | 1 1 2 . 1 2 1 2 2 3 . 1 . 1 Engine 8 | 1 1 2 . . 2 . 1 1 . . . . . Core 7 | . . . . 1 . 1 1 1 1 . 1 . 1 Reactor 2 | . . . . . . . . . 2 . . . . Propulsion 41 | 2 2 6 . 4 8 4 5 2 4 2 1 . 1 Treads 29 | 2 2 6 . 4 8 4 2 1 . . . . . Leg 9 | . . . . . . . 3 . 3 2 . . 1 Wheel 3 | . . . . . . . . 1 1 . 1 . . Hover . | . . . . . . . . . . . . . . Flight . | . . . . . . . . . . . . . . Utility 78 | 2 5 11 4 7 7 . 6 13 9 2 1 8 3 Device 35 | 1 4 6 3 4 4 . 2 9 1 . . 1 . Storage 5 | 1 1 1 . 1 . . . 1 . . . . . Processor 4 | . . . . 1 . . 3 . . . . . . Hackware 17 | . . . . . . . 1 2 7 2 . 4 1 Protection 17 | . . 4 1 1 3 . . 1 1 . 1 3 2 Artifact . | . . . . . . . . . . . . . . Weapon 65 | 2 3 8 6 2 3 2 9 16 5 3 2 2 2 Energy Gun 8 | 2 3 3 . . . . . . . . . . . Energy Cannon 17 | . . 3 5 1 2 1 . 2 1 1 1 . . Ballistic Gun 4 | . . 2 . . . . . . . . . . 2 Ballistic Cannon 15 | . . . . . . . 6 8 . . 1 . . Launcher 7 | . . . 1 1 1 1 1 . 2 . . . . Special Weapon 11 | . . . . . . . 1 6 2 1 . 1 . Impact Weapon . | . . . . . . . . . . . . . . Slashing Weapon 2 | . . . . . . . . . . 1 . 1 . Piercing Weapon 1 | . . . . . . . 1 . . . . . . Special Melee Weapon . | . . . . . . . . . . . . . . Unidentified Prototypes 3 | . . 2 . . . . . 1 . . . . . Parts Lost 47 | . 2 2 . 1 4 1 11 1 5 1 10 . 9 Power 6 | . 1 1 . . 1 1 1 . . . 1 . . Propulsion 10 | . . 1 . . . . 4 . 1 . 2 . 2 Utility 23 | . . . . 1 3 . 5 1 2 . 5 . 6 Weapon 8 | . 1 . . . . . 1 . 2 1 2 . 1 Highest Loss Streak 9 | . 2 1 . 1 1 1 3 1 3 1 9 . 8 To Critical Strikes . | . . . . . . . . . . . . . . Average Slot Usage (%) 95 | . 98 99 100 99 99 100 87 91 90 99 83 83 87 Engine 6 | . 14 10 11 1 8 5 4 4 3 . . . . Core 1 | . . . . 7 . 3 4 2 . . 1 6 6 Treads 15 | . 28 22 22 27 27 27 12 5 . . . . . Leg 4 | . . . . . . . 8 3 12 23 18 6 6 Wheel 1 | . . . . . . . . 6 3 . 2 6 5 Device 8 | . 13 11 11 9 11 18 7 10 1 . . 5 1 Storage 9 | . 14 11 11 9 9 9 9 7 7 7 7 6 6 Processor 6 | . . . . 8 9 9 21 7 7 . . . . Hackware 8 | . . . . . . . . 19 29 37 27 25 25 Protection 10 | . . 22 22 18 15 9 1 5 4 7 7 11 19 Energy Gun 3 | . 28 8 . . . . . . . . . . . Energy Cannon 8 | . . 12 22 17 18 17 1 1 6 6 5 . . Ballistic Cannon 3 | . . . . . . . 16 8 . . 2 . . Special Weapon 1 | . . . . . . . . 4 6 7 2 5 2 Naked Turns . | . . . . . . . . . . . . . . Heaviest Build 74 | 13 31 55 54 74 55 45 49 53 59 59 63 55 64 Greatest Support 61 | 40 40 40 40 60 60 60 60 30 61 61 61 28 28 Greatest Overweight (x) 13 | . . 1 1 1 . . 13 1 1 . 1 1 3 Average Overweight (x) . | . . . 1 . . . . 1 . . . 1 1 Largest Inventory Capacity 15 | 8 15 15 15 15 15 15 15 15 15 15 15 15 15 Average Capacity 14 | 7 14 15 15 15 15 15 15 15 15 15 15 15 15 Most Carried 15 | 6 15 15 15 15 15 15 15 15 15 15 14 9 15 Average Carried 14 | 4 13 14 14 14 14 14 14 14 14 14 12 5 12 Final Capacity 15 | 8 15 15 15 15 15 15 15 15 15 15 15 15 15 Final Carried 15 | 6 15 15 15 15 15 15 15 15 15 14 10 5 14 Class Distribution -------------------- 54% | Mutant 18% | Bothacker-Mutant 15% | Scavenger-Mutant 11% | Botlord-Mutant Dominant Class ---------------- Mutant | -10/Materials Mutant | -9/Materials Mutant | -9/Mines Scavenger-Mutant | -8/Materials Mutant | -8/Garrison Scavenger-Mutant | -8/Materials Mutant | -8/Garrison Bothacker-Mutant | -7/Factory Bothacker-Mutant | -7/Garrison Botlord-Mutant | -7/Factory Botlord-Mutant | -7/Garrison Bothacker-Mutant | -6/Factory Botlord-Mutant | -6/DSF Resources | -11 -10 -9 -9 -8 -8 -8 -8 -7 -7 -7 -7 -6 -6 ----------- Run | Yrd Mat Mat Min Mat Gar Mat Gar Fac Gar Fac Gar Fac DSF Matter Collected 4445 | 172 195 508 120 173 281 85 745 788 770 270 122 . 216 Remotely . | . . . . . . . . . . . . . . Salvage Created 5819 | 21 480 1200 203 332 1058 197 673 366 628 197 312 . 152 Parts 344 | 4 26 65 8 24 56 9 62 22 43 7 16 . 2 Haulers Intercepted 6 | . 2 3 . 1 . . . . . . . . . Recyclers Shooed 3 | . 1 2 . . . . . . . . . . . Parts Field Recycled . | . . . . . . . . . . . . . . Retrieved Matter . | . . . . . . . . . . . . . . Parts Self-Destructed . | . . . . . . . . . . . . . . Prevented . | . . . . . . . . . . . . . . Kills | -11 -10 -9 -9 -8 -8 -8 -8 -7 -7 -7 -7 -6 -6 ------- Run | Yrd Mat Mat Min Mat Gar Mat Gar Fac Gar Fac Gar Fac DSF Combat Hostiles Destroyed 149 | . 11 21 8 8 24 8 28 10 15 4 6 . 6 Melee 1 | . 1 . . . . . . . . . . . . Guns 33 | . 10 17 . . . . . . . . . . 6 Cannons 80 | . . 4 4 6 19 2 20 10 5 4 6 . . AOE 32 | . . . 4 2 2 6 8 . 10 . . . . Classes Destroyed 17 | 1 5 5 2 . 2 . 1 . 1 . . . . Worker 3 | . . 3 . . . . . . . . . . . Builder 3 | . 1 . . . . . . 2 . . . . . Tunneler 4 | 1 1 . 1 . . . . 1 . . . . . Hauler 6 | . 2 3 . 1 . . . . . . . . . Recycler 5 | . 1 1 . 2 . 1 . . . . . . . Watcher 2 | . . 2 . . . . . . . . . . . Swarmer 51 | . 5 3 4 6 4 6 12 3 7 1 . . . Cutter 2 | . . . . . 2 . . . . . . . . Grunt 42 | . 6 9 . . 8 2 7 1 4 1 4 . . Brawler 2 | . . 1 . . . . . . . . 1 . . Duelist 4 | . . 2 . . . . . . 1 . 1 . . Sentry 25 | . . 6 . 2 8 . 3 3 2 1 . . . Demolisher 2 | . . . 2 . . . . . . . . . . Specialist 2 | . . . . . . . . . 2 . . . . Hunter 3 | . . . . . . . 1 . 1 1 . . . Programmer 11 | . . . . . 2 . 5 3 . . 1 . . Assembled 8 | . . . 2 . . . . . . . . . 6 Best Kill Streak 11 | 1 6 5 4 3 5 6 11 4 7 1 4 . 4 Combat Bots Only 11 | . 4 3 4 3 5 6 11 3 7 1 4 . 4 Max Kills in Single Turn 4 | 1 2 2 2 1 2 4 4 2 3 1 1 . 1 Gunslinging 1 | . 1 1 . . . . . . . . . . . Exploded 4 | . . . 2 1 2 4 4 . 3 . . . . Melee 1 | . 1 . . . . . . . . . . . . Uniques/NPCs Destroyed 1 | . . . 1 . . . . . . . . . . YI-UF0 (-9/Mines) Combat | -11 -10 -9 -9 -8 -8 -8 -8 -7 -7 -7 -7 -6 -6 -------- Run | Yrd Mat Mat Min Mat Gar Mat Gar Fac Gar Fac Gar Fac DSF Hostile Shots Fired 1098 | . 92 99 15 31 155 19 145 122 87 89 135 . 109 Missed 331 | . 22 28 5 9 45 4 35 49 29 32 41 . 32 Damage Taken 10692 | . 629 841 331 234 1604 237 1516 780 1052 557 1565 . 1346 Core 1278 | . 157 56 31 . 127 44 154 84 273 11 195 . 146 Absorbed by Shields 21 | . . . . . . . . . 8 . 13 . . Core Remaining (%) 54 | 100 37 . 78 . . . 40 . . . 19 . . Volleys Fired 627 | 3 48 86 14 22 89 8 58 57 117 73 25 . 27 Largest 2 | 2 2 2 2 2 2 2 2 2 1 1 2 . 2 Hottest 136 | 80 130 136 136 136 136 136 136 96 65 65 113 . 56 Shots Fired 997 | 6 95 172 26 42 175 14 110 81 118 73 35 . 50 Gun 295 | 6 95 148 . . . . . . . . . . 46 Cannon 585 | . . 24 24 40 174 12 107 62 79 34 29 . . Launcher 18 | . . . 2 2 1 2 3 . 8 . . . . Special 99 | . . . . . . . . 19 31 39 6 . 4 Kinetic 205 | . . 10 . . . . 89 50 . . 10 . 46 Thermal 669 | 6 95 162 18 40 174 12 18 12 79 34 19 . . Explosive 18 | . . . 2 2 1 2 3 . 8 . . . . Electromagnetic 6 | . . . 6 . . . . . . . . . . Robot Hit Streak 21 | 1 16 21 5 7 20 11 16 8 17 12 8 . 4 Robot Miss Streak 5 | 2 5 3 1 4 3 1 5 5 2 5 2 . 4 Penetration Max 1 | . . . . . . . 1 . . . 1 . 1 Secondary Targets 8 | . 2 5 . . . . . . . . . . 1 Max Gunslinging Chain 1 | . 1 1 . . . . . . . . . . 1 Shots Hit Robots 588 | 2 57 123 17 23 95 12 57 50 62 48 20 . 22 Core Hits 236 | 1 20 46 13 12 35 11 30 15 26 7 9 . 11 Critical Kills 3 | . . . . . 3 . . . . . . . . Critical Parts Destroyed . | . . . . . . . . . . . . . . Critical Strikes 23 | . 4 11 . . 3 . 1 3 . . 1 . . Burn 15 | . 4 11 . . . . . . . . . . . Meltdown 3 | . . . . . 3 . . . . . . . . Blast 5 | . . . . . . . 1 3 . . 1 . . Melee Attacks 2 | . . . . . . . 1 . . 1 . . . Impact . | . . . . . . . . . . . . . . Slashing 1 | . . . . . . . . . . 1 . . . Piercing 1 | . . . . . . . 1 . . . . . . Sneak Attacks . | . . . . . . . . . . . . . . Combat Hostiles . | . . . . . . . . . . . . . . Follow-up Attacks . | . . . . . . . . . . . . . . Damage Inflicted 13019 | 23 774 1907 639 622 2151 616 1901 1183 1497 743 512 . 451 Guns 2871 | 23 774 1623 . . . . . . . . . . 451 Cannons 8022 | . . 269 299 468 2020 224 1443 1183 871 733 512 . . Explosions 2101 | . . . 340 154 131 392 458 . 626 . . . . Melee . | . . . . . . . . . . . . . . Ramming 25 | . . 15 . . . . . . . 10 . . . Kinetic 2870 | . . 110 . . . . 1155 888 . . 266 . 451 Thermal 8042 | 23 774 1782 334 468 2004 224 288 295 871 733 246 . . Explosive 1992 | . . . 231 154 131 392 458 . 626 . . . . Electromagnetic 74 | . . . 74 . . . . . . . . . . Impact 16 | . . . . . 16 . . . . . . . . Slashing . | . . . . . . . . . . . . . . Piercing . | . . . . . . . . . . . . . . Highest Corruption 5 | . 2 . . . 4 4 5 2 2 2 5 . 2 Average Corruption 3 | . 2 . . . 3 4 4 2 2 2 3 . 1 Corruption Purged . | . . . . . . . . . . . . . . Corruption Blocked . | . . . . . . . . . . . . . . Effects 128 | . 11 . . . 25 5 51 10 13 10 3 . . Message Errors 28 | . 3 . . . 4 . 14 2 2 3 . . . Matter Fused 28 | . 1 . . . 7 . 9 3 5 3 . . . Heat Flow Errors 17 | . 1 . . . 5 1 8 . 1 1 . . . Energy Discharges 20 | . 3 . . . 3 . 8 3 1 . 2 . . Parts Rejected 6 | . 1 . . . . 2 . . . 2 1 . . Data Loss (minor) 16 | . 1 . . . 3 2 7 . 2 1 . . . Data Loss (major) 5 | . . . . . . . 3 2 . . . . . Misfires 3 | . . . . . . . 2 . 1 . . . . Alerts 2 | . . . . . 1 . . . 1 . . . . Weapon Failures 3 | . 1 . . . 2 . . . . . . . . Overload Shots . | . . . . . . . . . . . . . . Overflow Damage 172 | . . 1 32 6 1 20 44 54 14 . . . . Projectiles 107 | . . 1 . 6 1 . 42 54 3 . . . . Explosions 65 | . . . 32 . . 20 2 . 11 . . . . Melee . | . . . . . . . . . . . . . . Knockbacks 13 | . . . . . . . 8 5 . . . . . Impact . | . . . . . . . . . . . . . . Kinetic 13 | . . . . . . . 8 5 . . . . . Secondary . | . . . . . . . . . . . . . . Self-Inflicted Damage 144 | . . . . . . 74 . . 70 . . . . Shots 5 | . . . . . . 2 . . 3 . . . . Rammed 2 | . . 2 . . . . . . . . . . . Targets Rammed 5 | . 1 3 . . . . . . . 1 . . . Kicked 1 | . . . . . . . . . . 1 . . . Crushed 2 | . 1 1 . . . . . . . . . . . Highest Temperature 375 | 54 349 375 225 372 375 110 324 278 153 246 289 . 1 Average Temperature 87 | 29 104 70 92 118 97 24 119 90 35 73 95 . 1 Received Heat Transfer 2845 | . 126 270 20 54 630 72 333 123 216 162 639 . 200 Effects 9 | . 1 1 . 4 2 . 1 . . . . . . Shutdowns 1 | . . . . . 1 . . . . . . . . Energy Bleed 3 | . . 1 . 1 . . 1 . . . . . . Interference 2 | . . . . 2 . . . . . . . . . Matter Decay 2 | . . . . 1 1 . . . . . . . . Damage (minor) 1 | . 1 . . . . . . . . . . . . Siege Activations . | . . . . . . . . . . . . . . Robots Corrupted . | . . . . . . . . . . . . . . Combat Hostiles . | . . . . . . . . . . . . . . Parts Fried . | . . . . . . . . . . . . . . Impact Corruptions . | . . . . . . . . . . . . . . Robots Melted 3 | . . . . . 3 . . . . . . . . Combat Hostiles 3 | . . . . . 3 . . . . . . . . Parts Melted 38 | . 3 17 . 2 15 . . . . 1 . . . Heat Transferred 15780 | 50 2133 5180 557 851 3240 407 518 407 1105 999 333 . . Parts Sabotaged . | . . . . . . . . . . . . . . Parts Stolen . | . . . . . . . . . . . . . . Parts Stripped . | . . . . . . . . . . . . . . Power Chain Reactions . | . . . . . . . . . . . . . . Alert | -11 -10 -9 -9 -8 -8 -8 -8 -7 -7 -7 -7 -6 -6 ------- Run | Yrd Mat Mat Min Mat Gar Mat Gar Fac Gar Fac Gar Fac DSF Peak Influence 1594 | 5 190 263 282 253 872 654 1594 935 1019 549 407 176 153 Initial 836 | . 3 37 74 . 78 425 425 836 336 534 277 176 123 Average 465 | . 59 179 112 103 524 554 1003 630 721 394 310 176 133 Maximum Alert Level 4 | . . 1 1 1 3 2 4 3 3 2 2 . . Low Security (%) 31 | 100 100 49 83 95 8 . . . . . . 100 100 Level 1 21 | . . 50 16 4 30 . . 14 5 62 99 . . Level 2 18 | . . . . . 34 100 17 37 35 37 . . . Level 3 19 | . . . . . 26 . 35 48 58 . . . . Level 4 8 | . . . . . . . 46 . . . . . . Level 5 . | . . . . . . . . . . . . . . High Security . | . . . . . . . . . . . . . . Max Security . | . . . . . . . . . . . . . . Squads Dispatched 12 | . 1 1 . 2 . 1 . 3 . 4 . . . Investigation 3 | . 1 . . . . . . . . 2 . . . Extermination 2 | . . . . . . . . 2 . . . . . Reinforcement 7 | . . 1 . 2 . 1 . 1 . 2 . . . Assault . | . . . . . . . . . . . . . . Garrison . | . . . . . . . . . . . . . . Intercept . | . . . . . . . . . . . . . . Searches Triggered . | . . . . . . . . . . . . . . Construction Impeded . | . . . . . . . . . . . . . . Haulers Reinforced . | . . . . . . . . . . . . . . Active Scanning Responses . | . . . . . . . . . . . . . . Cargo Convoy Interrupts . | . . . . . . . . . . . . . . Alert ID Control Effect 3 | . . . . . . . . . . 2 1 . . Stealth | -11 -10 -9 -9 -8 -8 -8 -8 -7 -7 -7 -7 -6 -6 --------- Run | Yrd Mat Mat Min Mat Gar Mat Gar Fac Gar Fac Gar Fac DSF Distress Signals 8 | . 1 7 . . . . . . . . . . . Communications Jammed . | . . . . . . . . . . . . . . Distress Signals . | . . . . . . . . . . . . . . Times Spotted 269 | . 20 37 9 14 24 10 28 20 28 28 17 . 34 Peak Tracking Total 19 | . 5 5 4 3 6 7 7 3 7 4 9 . 19 Tactical Retreats 11 | . . 3 . . 1 . 2 1 1 1 . . 2 Traps | -11 -10 -9 -9 -8 -8 -8 -8 -7 -7 -7 -7 -6 -6 ------- Run | Yrd Mat Mat Min Mat Gar Mat Gar Fac Gar Fac Gar Fac DSF Traps Triggered 20 | . 2 . . . 2 . 6 . 6 2 1 1 . Indirectly . | . . . . . . . . . . . . . . Trap Hack Attempts . | . . . . . . . . . . . . . . Triggered . | . . . . . . . . . . . . . . Disarmed . | . . . . . . . . . . . . . . Reprogrammed . | . . . . . . . . . . . . . . Reused . | . . . . . . . . . . . . . . Traps Extracted . | . . . . . . . . . . . . . . Installed . | . . . . . . . . . . . . . . Triggered . | . . . . . . . . . . . . . . Machines | -11 -10 -9 -9 -8 -8 -8 -8 -7 -7 -7 -7 -6 -6 ---------- Run | Yrd Mat Mat Min Mat Gar Mat Gar Fac Gar Fac Gar Fac DSF Machines Disabled 21 | . 1 . 3 . . . 3 5 6 1 2 . . Max in Single Turn 4 | . 1 . 3 . . . 1 4 1 1 1 . . Garrison Relay 9 | . . . . . . . 4 . 5 . . . . Machines Repaired . | . . . . . . . . . . . . . . Machines Dismantled . | . . . . . . . . . . . . . . Machines Sabotaged . | . . . . . . . . . . . . . . Overloaded Fab Kills . | . . . . . . . . . . . . . . Hacking | -11 -10 -9 -9 -8 -8 -8 -8 -7 -7 -7 -7 -6 -6 --------- Run | Yrd Mat Mat Min Mat Gar Mat Gar Fac Gar Fac Gar Fac DSF Machines Accessed 32 | . 5 2 . 4 3 1 3 8 1 4 . 1 . Terminals 25 | . 5 2 . 1 3 . 3 7 1 2 . 1 . Fabricators . | . . . . . . . . . . . . . . Repair Stations . | . . . . . . . . . . . . . . Recycling Units 1 | . . . . 1 . . . . . . . . . Scanalyzers 2 | . . . . 1 . . . . . 1 . . . Garrison Access 4 | . . . . 1 . 1 . 1 . 1 . . . Total Hacks 65 | . 12 5 . 8 4 1 6 20 1 7 . 1 . Successful 29 | . 5 2 . 6 1 1 1 8 1 3 . 1 . Failed 36 | . 7 3 . 2 3 . 5 12 . 4 . . . Catastrophic 10 | . 2 . . 1 1 . 1 4 . 1 . . . Database Lockouts . | . . . . . . . . . . . . . . Manual 25 | . 3 3 . 2 . . . 13 . 4 . . . Terminals 53 | . 12 5 . 1 4 . 6 19 1 4 . 1 . Fabricators . | . . . . . . . . . . . . . . Repair Stations . | . . . . . . . . . . . . . . Recycling Units 4 | . . . . 4 . . . . . . . . . Scanalyzers 4 | . . . . 2 . . . . . 2 . . . Garrison Access 4 | . . . . 1 . 1 . 1 . 1 . . . Terminal Hacks 16 | . 5 2 . . 1 . 1 5 1 . . 1 . Record 2 | . . 1 . . . . . 1 . . . . . Prototype ID Bank 1 | . 1 . . . . . . . . . . . . Open DSF 1 | . . . . . . . . . . . . 1 . Emergency Access Points 4 | . . . . . 1 . 1 1 1 . . . . Alert Level 1 | . . 1 . . . . . . . . . . . Unreport Threat 2 | . 1 . . . . . . 1 . . . . . Locate Traps 1 | . 1 . . . . . . . . . . . . Hauler Manifests 2 | . 1 . . . . . . 1 . . . . . Registered Components 1 | . . . . . . . . 1 . . . . . Zone Layout 1 | . 1 . . . . . . . . . . . . Fabricator Hacks . | . . . . . . . . . . . . . . Repair Station Hacks . | . . . . . . . . . . . . . . Recycling Unit Hacks 2 | . . . . 2 . . . . . . . . . Report Inventory 1 | . . . . 1 . . . . . . . . . Retrieve Components 1 | . . . . 1 . . . . . . . . . Scanalyzer 3 | . . . . 2 . . . . . 1 . . . Insert Component 2 | . . . . 1 . . . . . 1 . . . Analyze 1 | . . . . 1 . . . . . . . . . Garrison Access Hacks 4 | . . . . 1 . 1 . 1 . 1 . . . Unlock Access 4 | . . . . 1 . 1 . 1 . 1 . . . Unauthorized Hacks 4 | . . . . 1 . . . 2 . 1 . . . Terminals 3 | . . . . . . . . 2 . 1 . . . Track 1 | . . . . . . . . . . 1 . . . Assimilate 1 | . . . . . . . . 1 . . . . . Operators 1 | . . . . . . . . 1 . . . . . Fabricators . | . . . . . . . . . . . . . . Repair Stations . | . . . . . . . . . . . . . . Recycling Units 1 | . . . . 1 . . . . . . . . . Reject 1 | . . . . 1 . . . . . . . . . Scanalyzers . | . . . . . . . . . . . . . . Garrison Access . | . . . . . . . . . . . . . . Data Cores Recovered . | . . . . . . . . . . . . . . Used . | . . . . . . . . . . . . . . Hacking Detections 25 | . 4 2 . 1 3 1 2 7 1 4 . . . Full Trace Events 1 | . . . . . . . . . . 1 . . . Feedback Events . | . . . . . . . . . . . . . . Feedback Blocked . | . . . . . . . . . . . . . . Robot Schematics Acquired . | . . . . . . . . . . . . . . Robots Built . | . . . . . . . . . . . . . . Authchips . | . . . . . . . . . . . . . . Time . | . . . . . . . . . . . . . . Total Robot Build Rating . | . . . . . . . . . . . . . . Part Schematics Acquired 1 | . . . . 1 . . . . . . . . . Parts Built . | . . . . . . . . . . . . . . Authchips . | . . . . . . . . . . . . . . Time . | . . . . . . . . . . . . . . Total Part Build Rating . | . . . . . . . . . . . . . . Parts Repaired . | . . . . . . . . . . . . . . Time . | . . . . . . . . . . . . . . Parts Recycled . | . . . . . . . . . . . . . . Recycled Matter . | . . . . . . . . . . . . . . Retrieved Matter . | . . . . . . . . . . . . . . Retrieved Components 9 | . . . . 9 . . . . . . . . . Parts Scanalyzed 2 | . . . . 1 . . . . . 1 . . . Part Schematics Acquired 1 | . . . . 1 . . . . . . . . . Parts Damaged 1 | . . . . 1 . . . . . . . . . Bothacking | -11 -10 -9 -9 -8 -8 -8 -8 -7 -7 -7 -7 -6 -6 ------------ Run | Yrd Mat Mat Min Mat Gar Mat Gar Fac Gar Fac Gar Fac DSF Used RIF Installer 5 | . . . . . 1 . 2 . 2 . . . . Coupler Efficiency 1 | . . . . . . . 1 . . . . . . Command Fork 1 | . . . . . . . 1 . . . . . . Patrol Navigation 1 | . . . . . . . . . 1 . . . . Alert ID Control 1 | . . . . . . . . . 1 . . . . Robots Hacked 37 | . . . . . . . . 8 9 15 4 . 1 Non-combat 10 | . . . . . . . . 6 . 4 . . . Combat 27 | . . . . . . . . 2 9 11 4 . 1 Robot Hacks Applied 52 | . . . . . . . . 12 13 21 5 . 1 parse_system 3 | . . . . . . . . 1 . 1 1 . . find_chute 2 | . . . . . . . . 2 . . . . . ignore_repairs 1 | . . . . . . . . 1 . . . . . find_dsf 1 | . . . . . . . . 1 . . . . . drop_inventory 2 | . . . . . . . . . . 2 . . . purge_threat 3 | . . . . . . . . 2 . 1 . . . block_reporting 2 | . . . . . . . . 2 . . . . . find_shortcuts 1 | . . . . . . . . . 1 . . . . find_garrison 2 | . . . . . . . . 1 . 1 . . . tweak_propulsion 1 | . . . . . . . . . . . 1 . . overload_power 1 | . . . . . . . . . 1 . . . . wipe_record 2 | . . . . . . . . . . 2 . . . disable_weapons 10 | . . . . . . . . 1 4 5 . . . reboot_system 1 | . . . . . . . . . . 1 . . . go_dormant 1 | . . . . . . . . . . 1 . . . overwrite_iff 18 | . . . . . . . . 1 7 7 3 . . formatsys_high 1 | . . . . . . . . . . . . . 1 Relay Couplers Released 36 | . . . . . . . 17 . 19 . . . . Machine Destruction 36 | . . . . . . . 17 . 19 . . . . Attached 17 | . . . . . . . 1 2 7 2 . 4 1 Fabnet Peak Effective % . | . . . . . . . . . . . . . . Robots Rewired 5 | . . . . . . . . . 5 . . . . Allies Hacked . | . . . . . . . . . . . . . . Hacks Repelled . | . . . . . . . . . . . . . . Allies | -11 -10 -9 -9 -8 -8 -8 -8 -7 -7 -7 -7 -6 -6 -------- Run | Yrd Mat Mat Min Mat Gar Mat Gar Fac Gar Fac Gar Fac DSF Total Allies 27 | . . . . . . . . 2 12 9 3 . 1 Largest Group 4 | . . . . . . . . 2 4 3 1 . 1 Highest-Rated Group 90 | . . . . . . . . 25 87 40 16 . 90 Highest-Rated Ally 90 | . . . . . . . . 16 29 16 16 . 90 Total Orders . | . . . . . . . . . . . . . . Ally Attacks 80 | . . . . . . . . 5 37 14 8 . 16 Total Damage 1624 | . . . . . . . . 57 493 186 109 . 779 Kills 18 | . . . . . . . . 1 5 2 1 . 9 Allies Corrupted . | . . . . . . . . . . . . . . Allies Melted 1 | . . . . . . . . . . 1 . . . Intel | -11 -10 -9 -9 -8 -8 -8 -8 -7 -7 -7 -7 -6 -6 ------- Run | Yrd Mat Mat Min Mat Gar Mat Gar Fac Gar Fac Gar Fac DSF Robot Analysis Total . | . . . . . . . . . . . . . . Derelict Logs Recovered . | . . . . . . . . . . . . . . Drone Launches . | . . . . . . . . . . . . . . Drone Recoveries . | . . . . . . . . . . . . . . Exploration | -11 -10 -9 -9 -8 -8 -8 -8 -7 -7 -7 -7 -6 -6 ------------- Run | Yrd Mat Mat Min Mat Gar Mat Gar Fac Gar Fac Gar Fac DSF Turns Passed 12569 | 74 1018 2219 846 566 1635 206 2260 1203 1115 773 240 128 286 Spaces Moved 6277 | 36 507 750 291 252 789 105 1021 805 758 585 142 100 136 Core 11 | 7 . . . . . . 4 . . . . . . Treads 3376 | 29 507 750 291 252 789 105 653 . . . . . . Legs 1573 | . . . . . . . 364 77 450 585 95 . 2 Wheels 1317 | . . . . . . . . 728 308 . 47 100 134 Hover . | . . . . . . . . . . . . . . Flight . | . . . . . . . . . . . . . . Fastest Speed 50 | 50 160 160 240 160 163 160 163 115 100 100 100 115 115 Average Speed 158 | 138 160 229 240 161 163 162 194 122 107 100 117 115 124 Slowest Speed 700 | 160 160 240 240 240 163 163 700 190 190 100 183 115 330 Overloaded Moves . | . . . . . . . . . . . . . . Propulsion Burnouts . | . . . . . . . . . . . . . . Robots Hopped . | . . . . . . . . . . . . . . Cave-ins Triggered . | . . . . . . . . . . . . . . Exploration Rate (%) 45 | 4 86 50 59 36 86 13 76 32 76 22 27 3 72 Regions Visited 13 Branch Regions 1 Pre-discovered Areas . | . . . . . . . . . . . . . . Known Exits Taken 5 | . . . . 1 . 1 . 1 . 1 . 1 . Unknown Exits Taken 4 | 1 1 1 1 . . . . . . . . . . Scrap Searched 1 | . . . 1 . . . . . . . . . . Spaces Dug 10 | . . . . . . . . . 8 2 . . . Terrain Destroyed 145 | . . . 28 19 . 19 7 22 47 3 . . . Melee 1 | . . . . . . . . . . 1 . . . Projectile 27 | . . . 1 . . . 2 22 . 2 . . . AOE 117 | . . . 27 19 . 19 5 . 47 . . . . Terrain Rammed . | . . . . . . . . . . . . . . Walls Destroyed . | . . . . . . . . . . . . . . Machines Disabled . | . . . . . . . . . . . . . . Actions | -11 -10 -9 -9 -8 -8 -8 -8 -7 -7 -7 -7 -6 -6 --------- Run | Yrd Mat Mat Min Mat Gar Mat Gar Fac Gar Fac Gar Fac DSF Total 7951 | 51 627 1089 411 368 970 126 1181 948 962 716 181 111 210 Wait 549 | . 19 167 92 67 46 2 54 31 15 39 2 . 15 Move 6267 | 35 506 749 290 252 787 105 1020 804 757 585 141 100 136 Hop . | . . . . . . . . . . . . . . Pick Up 120 | 6 24 23 2 5 11 2 10 6 11 3 . 1 16 Fast Attach 50 | 7 2 4 . 1 2 1 10 6 8 2 1 4 2 Attach 42 | . 3 5 . 3 5 2 3 3 5 2 3 6 2 Detach 15 | . . 1 . 1 . . 2 3 5 1 . . 2 Swap 109 | . 6 18 10 10 13 4 9 24 8 3 1 . 3 Drop 122 | . 18 33 3 7 17 2 9 14 11 1 . . 7 Fire 627 | 3 48 86 14 22 89 8 58 57 117 73 25 . 27 Melee 2 | . . . . . . . 1 . . 1 . . . Ram . | . . . . . . . . . . . . . . Kick 1 | . . . . . . . . . . 1 . . . Crush 4 | . 1 3 . . . . . . . . . . . Escape Stasis 42 | . . . . . . . 5 . 24 5 8 . . Rewire 1 | . . . . . . . . . 1 . . . . Trap . | . . . . . . . . . . . . . . Miscellaneous . | . . . . . . . . . . . . . . Route ------- -11/Scrapyard -10/Materials (discovered 5 exits: *Mat x3 / [*Min x2]) -9/Materials (discovered 3 exits: *Mat / [*Min] / [*Sto]) -9/Mines -8/Materials (discovered 2 exits: *Fac / Gar) -8/Garrison (discovered 3 exits: *Mat x3) -8/Materials (discovered 2 exits: *Fac / Gar) -8/Garrison (discovered 3 exits: *Fac x3) -7/Factory (discovered 4 exits: *Fac x2 / [*Low] / Gar) -7/Garrison (discovered 3 exits: *Fac x3) -7/Factory (discovered 2 exits: *Fac / Gar) -7/Garrison -6/Factory -6/DSF History --------- Turn | Location | Event 34 | -11/Scrapyard | Discovered new exit (range 15) 75 | -11/Scrapyard | Entered Materials 287 | -10/Materials | Discovered new exit (range 10) 314 | -10/Materials | Build established: Mutant 447 | -10/Materials | Discovered new exit (range 10) 577 | -10/Materials | Discovered new exit (range 16) 813 | -10/Materials | Discovered new exit (range 16) 919 | -10/Materials | Core integrity fell below 50% 954 | -10/Materials | Discovered new exit (range 16) 1093 | -10/Materials | Entered another Materials area 1093 | -9/Materials | Evolved 2 slots: Utility x2 2086 | -9/Materials | Discovered new exit (range 12) 2355 | -9/Materials | Discovered new exit (range 5) 2511 | -9/Materials | Discovered new exit (range 5) 3312 | -9/Materials | Entered Mines 3330 | -9/Mines | Assembled infested the area 3858 | -9/Mines | Discovered new exit (range 16) 3883 | -9/Mines | YI-UF0 nonchalantly dropped a Grenade Launcher on the ground 4064 | -9/Mines | Murdered YI-UF0 4064 | -9/Mines | Destroyed YI-UF0 4158 | -9/Mines | Entered Materials 4158 | -8/Materials | Evolved 2 slots: Propulsion x1, Utility x1 4465 | -8/Materials | Build established: Scavenger-Mutant 4655 | -8/Materials | Discovered new exit (range 12) 4724 | -8/Materials | Identified exit to Garrison 4724 | -8/Materials | Entered Garrison 4793 | -8/Garrison | Build established: Mutant 4928 | -8/Garrison | Triggered checkpoint 4996 | -8/Garrison | Installed Relay Interface Framework 5108 | -8/Garrison | Triggered checkpoint 5162 | -8/Garrison | Triggered checkpoint 5277 | -8/Garrison | Discovered new exit (range 9) 5358 | -8/Garrison | Triggered checkpoint 5664 | -8/Garrison | Triggered checkpoint 5759 | -8/Garrison | Discovered new exit (range 7) 5861 | -8/Garrison | Triggered checkpoint 6031 | -8/Garrison | Discovered new exit (range 9) 6100 | -8/Garrison | Triggered checkpoint 6151 | -8/Garrison | Build established: Scavenger-Mutant 6359 | -8/Garrison | Entered Materials 6543 | -8/Materials | Discovered new exit (range 16) 6565 | -8/Materials | Identified exit to Garrison 6565 | -8/Materials | Entered Garrison 6646 | -8/Garrison | Triggered checkpoint 6944 | -8/Garrison | Triggered checkpoint 6975 | -8/Garrison | Build established: Mutant 6997 | -8/Garrison | Destroyed 11 combat bots 7021 | -8/Garrison | Lost 3 parts (2n1u) 7092 | -8/Garrison | Discovered new exit (range 10) 7278 | -8/Garrison | Triggered checkpoint 7372 | -8/Garrison | Discovered new exit (range 10) 7540 | -8/Garrison | Triggered checkpoint 7668 | -8/Garrison | Discovered new exit (range 10) 7784 | -8/Garrison | Garrison Relay disabled 7968 | -8/Garrison | Core integrity fell below 50% 7980 | -8/Garrison | Expanded RIF knowledge: Command Fork 8078 | -8/Garrison | Triggered checkpoint 8320 | -8/Garrison | Build established: Scavenger-Mutant 8493 | -8/Garrison | Expanded RIF knowledge: Coupler Efficiency 8748 | -8/Garrison | Garrison Relay disabled 8825 | -8/Garrison | Entered Factory 8825 | -7/Factory | Evolved 2 slots: Utility x2 9065 | -7/Factory | Build established: Bothacker-Mutant 9149 | -7/Factory | Discovered new exit (range 6) 9758 | -7/Factory | Discovered new exit (range 9) 9921 | -7/Factory | Discovered new exit (range 8) 10022 | -7/Factory | Identified exit to Garrison 10028 | -7/Factory | Entered Garrison 10090 | -7/Garrison | Triggered checkpoint 10116 | -7/Garrison | Garrison Relay disabled 10136 | -7/Garrison | Triggered checkpoint 10169 | -7/Garrison | Garrison Relay disabled 10332 | -7/Garrison | Triggered checkpoint 10344 | -7/Garrison | Triggered checkpoint 10386 | -7/Garrison | Lost 9 allies 10399 | -7/Garrison | Destroyed 7 combat bots 10409 | -7/Garrison | Lost 3 parts (1u2w) 10471 | -7/Garrison | Discovered new exit (range 9) 10598 | -7/Garrison | Triggered checkpoint 10610 | -7/Garrison | Garrison Relay disabled 10790 | -7/Garrison | Found Imp. Powered Armor 10794 | -7/Garrison | Found Imp. Powered Armor 10832 | -7/Garrison | Expanded RIF knowledge: Alert ID Control 10860 | -7/Garrison | Discovered new exit (range 5) 10890 | -7/Garrison | Garrison Relay disabled 10892 | -7/Garrison | Triggered checkpoint 10974 | -7/Garrison | Triggered checkpoint 11000 | -7/Garrison | Triggered checkpoint 11021 | -7/Garrison | Core integrity fell below 50% 11053 | -7/Garrison | Expanded RIF knowledge: Patrol Navigation 11062 | -7/Garrison | Garrison Relay disabled 11087 | -7/Garrison | Discovered new exit (range 10) 11115 | -7/Garrison | Build established: Botlord-Mutant 11143 | -7/Garrison | Entered Factory 11360 | -7/Factory | Discovered new exit (range 15) 11916 | -7/Factory | Identified exit to Garrison 11916 | -7/Factory | Entered Garrison 11985 | -7/Garrison | Triggered checkpoint 12034 | -7/Garrison | Spotted B-75 Beast 12081 | -7/Garrison | Triggered checkpoint 12129 | -7/Garrison | Lost 9 parts (1p2n4u2w) 12135 | -7/Garrison | Core integrity fell below 20% 12145 | -7/Garrison | Discovered new exit (range 10) 12156 | -7/Garrison | Entered Factory 12156 | -6/Factory | Evolved 2 slots: Utility x2 12284 | -6/Factory | Identified exit to DSF 12284 | -6/Factory | Entered DSF 12294 | -6/DSF | Assembled infested the area 12318 | -6/DSF | Additional patrols routed to DSF 12570 | -6/DSF | Self-destructed Last Messages --------------- 12511_ Extracted 200 matter. 12511_ Acquired Hcp. Matter Pod. 12512_ Slug penetrates Wall. 12515_ as-15812 destroyed. 12515_ Switching to secondary target: as-74429. 12518_ Slug penetrates Wall. 12521_ as-74429 destroyed. 12526_ Acquired Insulated Plating. 12531_ Slug penetrates Wall. 12557_ Knocked back. 12560_ Hrd. Light Armor Plating destroyed. 12560_ Relay Coupler [NC] destroyed. 12560_ System corrupted by crushing effect (+1). 12561_ Adv. VSS Leg destroyed. 12562_ Arm. Huge Wheel destroyed. 12565_ Insulated Plating destroyed. 12565_ System corrupted by crushing effect (+1). 12568_ Relay Coupler [Hunter] destroyed. 12568_ Gauss Rifle destroyed. 12569_ Hrd. Light Armor Plating destroyed. Map ----- +----------------------------------------------------+ | | | | | | | | | | | | | | | | | | | | | | | | | | | | | | | ??????????????????????????????????????????????? | | ??????????????????????????????????????????????? | | ??????????????????????????????????????????????? | | ??????????????????????????????????????????????? | | ???????????????????????????????????""?????????? | | ?????????????###??????????????????#"#?????????? | | ????????????## #######????????##"####??????? | | ????????????? !!!!!#########"""""#??????? | | ?????????? ]] # !!a!!#!a!#!!##"""""#??????? | | ?????????? aaaaaaa a ""##"????? | | ?????????? %a a@aa a """""????? | | ?????????????#[[[ ## ###a #!!## ""##?????? | | ??????????????????## ??# #!!### ###??????? | | ?????????????????? ??########## ##???????? | | ??????????????????? % ?????????#!! !#???????? | | ??????????????????? % ?????????#!! !#???????? | | ?????????????????###%%%#????????### ##???????? | | ?????????????????#!!% !????????# !#???????? | | ?????????????????#!! %!????????# !#???????? | | ??????????????????!! !????????# !#???????? | | ?????????????###???#% #?########## ###??????? | | ?????????# ??#!!!?##% ###!!!#!! ## #??????? | | ?????????# #!!!## "#!!!#!! ## #??????? | | ????????? % % % //###????? | | ???????? %% %% ! % //" #????? | | ????????? ! !%* //###????? | | ?????????????#|||##% % #"!!!#///## //#??????? | | ??????????????????#= ###!!!#///## //#??????? | | ?????????????????### ####+####### ###??????? | | ?????????????????#!!% **#? #???# #???????? | | ?????????????????#!! **#?%#???# #???????? | | ?????????????????#!! /* #? !???# #???????? | | ?????????????????### ###? !???### ##???????? | | ?????????????????# #? #???# #???????? | | ?????????????????# #? #???# !#???????? | +----------------------------------------------------+ Best States ------------- Heat Dissipation 64 Coolant Potential 65 Energy Generation 21 Energy Capacity 325 Matter Stores 300 Matter Capacity 300 Sight Range 16 Terrain Scan Density 10 Power Amplification 20 Armor Coverage 700 Resistance: EM 15 Evasion (%) 61 Targeting Accuracy 6 Target Analysis 5 Core Analysis 9 Recoil Reduction 3 Kinecelleration 30 Relay Coupler Types 5 Relay Coupler Value 155 Item Schematics ----------------- Cmb. Airjet | -8/Materials | Scanalyzed Robot Schematics ------------------ None Fabricated ------------ Nothing Alien Tech Used ----------------- None Achievements -------------- None Challenges ------------ None Game ------ Seed HugeConcussiveArray Manual? 0 Play Time 02:01:05 Cumulative 175.8 hours Start 2024.04.04 @ 22:41:34 End 2024.04.06 @ 00:48:24 Sessions 7 Manual Loads 0 Difficulty Rogue Special Mode None Game No. 135 Rogue 135 Adventurer 0 Explorer 0 Win Type - Total 3 Types 3/0/0/0/0/0/0/0/0 Lore% 59 Gallery% 69 Achievement% 60 Wizard Run 0 Options --------- Layout 0 ASCII 0 Keyboard 1 Movement Numpad Keybinds 0 Fullscreen 2 Font 18/SmallcapsGlow Map View 76x50 Zoom Use 0% Tactical HUD 1 Map Filters NONE Filters NONE Steam 1 RUN: 2d66d5ca-f44d-4a60-84ad-34169980a7c8